[Event "FIDE U16 Olympiad_boards_81-124"]
[Site "Eindhoven, Netherlands"]
[Date "2023.08.14"]
[Round "2.36"]
[White "Reding, Sevda"]
[Black "Wang, Yushin Andrea"]
[Result "1-0"]
[TimeControl "45min+10sec"]
[WhiteElo "1237"]
[BlackElo "1186"]

1. e4 {[%clk 00:45:18]} {[%emt 00:00:02]} e5 {[%clk 00:45:18]} {[%emt
00:00:02]} 2. Nf3 {[%clk 00:45:27]} {[%emt 00:00:02]} Nc6 {[%clk 00:45:26]}
{[%emt 00:00:02]} 3. d4 {[%clk 00:45:35]} {[%emt 00:00:02]} exd4 {[%clk
00:45:30]} {[%emt 00:00:05]} 4. Bc4 {[%clk 00:45:44]} {[%emt 00:00:02]} Nf6
{[%clk 00:44:39]} {[%emt 00:01:01]} 5. e5 {[%clk 00:45:52]} {[%emt 00:00:02]}
Ne4 {[%clk 00:44:23]} {[%emt 00:00:24]} 6. c3 {[%clk 00:42:42]} {[%emt
00:03:21]} Be7 {[%clk 00:39:42]} {[%emt 00:04:52]} 7. cxd4 {[%clk 00:38:35]}
{[%emt 00:04:17]} d5 {[%clk 00:36:21]} {[%emt 00:03:31]} 8. Bb5 {[%clk
00:36:15]} {[%emt 00:02:29]} O-O {[%clk 00:34:06]} {[%emt 00:02:25]} 9. O-O
{[%clk 00:36:10]} {[%emt 00:00:15]} Bg4 {[%clk 00:32:23]} {[%emt 00:01:53]} 10.
Bxc6 {[%clk 00:34:10]} {[%emt 00:02:10]} bxc6 {[%clk 00:32:16]} {[%emt
00:00:17]} 11. Qd3 {[%clk 00:30:23]} {[%emt 00:03:58]} Re8 {[%clk 00:28:56]}
{[%emt 00:03:30]} 12. Ne1 {[%clk 00:26:42]} {[%emt 00:03:50]} Bf5 {[%clk
00:25:42]} {[%emt 00:03:24]} 13. Nc3 {[%clk 00:20:53]} {[%emt 00:05:59]} Bg6
{[%clk 00:18:51]} {[%emt 00:07:01]} 14. f4 {[%clk 00:18:49]} {[%emt 00:02:14]}
Bh4 {[%clk 00:09:33]} {[%emt 00:09:28]} 15. f5 {[%clk 00:11:56]} {[%emt
00:07:04]} Bxf5 {[%clk 00:04:04]} {[%emt 00:05:39]} 16. Rxf5 {[%clk 00:11:17]}
{[%emt 00:00:48]} Bxe1 {[%clk 00:04:09]} {[%emt 00:00:05]} 17. Nxe4 {[%clk
00:10:43]} {[%emt 00:00:44]} dxe4 {[%clk 00:04:13]} {[%emt 00:00:06]} 18. Qxe4
{[%clk 00:10:45]} {[%emt 00:00:08]} Ba5 {[%clk 00:02:28]} {[%emt 00:01:55]} 19.
Be3 {[%clk 00:09:24]} {[%emt 00:01:31]} Bb6 {[%clk 00:01:51]} {[%emt 00:00:48]}
20. Qf3 {[%clk 00:07:58]} {[%emt 00:01:35]} Bxd4 {[%clk 00:01:18]} {[%emt
00:00:43]} 21. Rf1 {[%clk 00:07:05]} {[%emt 00:01:03]} Bxe3+ {[%clk 00:01:09]}
{[%emt 00:00:20]} 22. Qxe3 {[%clk 00:07:13]} {[%emt 00:00:02]} Re7 {[%clk
00:00:57]} {[%emt 00:00:21]} 23. h4 {[%clk 00:06:56]} {[%emt 00:00:27]} f6
{[%clk 00:00:39]} {[%emt 00:00:28]} 24. Qb3+ {[%clk 00:07:01]} {[%emt
00:00:05]} Kh8 {[%clk 00:00:25]} {[%emt 00:00:25]} 25. exf6 {[%clk 00:06:55]}
{[%emt 00:00:15]} Qd4+ {[%clk 00:00:22]} {[%emt 00:00:13]} 26. R1f2 {[%clk
00:05:44]} {[%emt 00:01:21]} Re1+ {[%clk 00:00:22]} {[%emt 00:00:10]} 27. Kh2
{[%clk 00:05:49]} {[%emt 00:00:05]} Qxh4+ {[%clk 00:00:19]} {[%emt 00:00:14]}
28. Qh3 {[%clk 00:05:58]} {[%emt 00:00:01]} Qxh3+ {[%clk 00:00:19]} {[%emt
00:00:10]} 29. gxh3 {[%clk 00:06:03]} {[%emt 00:00:05]} gxf6 {[%clk 00:00:19]}
{[%emt 00:00:10]} 30. Rxf6 {[%clk 00:06:11]} {[%emt 00:00:01]} Rg8 {[%clk
00:00:19]} {[%emt 00:00:10]} 31. Rxc6 {[%clk 00:05:50]} {[%emt 00:00:31]} Rgg1
{[%clk 00:00:11]} {[%emt 00:00:19]} 32. Rxc7 {[%clk 00:05:41]} {[%emt
00:00:19]} Rh1+ {[%clk 00:00:16]} {[%emt 00:00:04]} 33. Kg2 {[%clk 00:05:50]}
{[%emt 00:00:01]} Reg1+ {[%clk 00:00:24]} {[%emt 00:00:03]} 34. Kf3 {[%clk
00:05:59]} Rxh3+ {[%clk 00:00:31]} {[%emt 00:00:02]} 35. Ke2 {[%emt 00:00:02]}
Rh6 {[%clk 00:00:18]} {[%emt 00:00:23]} 36. Rxa7 {[%clk 00:05:56]} {[%emt
00:00:22]} Re6+ {[%clk 00:00:22]} {[%emt 00:00:05]} 37. Kd3 {[%clk 00:06:03]}
{[%emt 00:00:03]} Rd1+ {[%clk 00:00:20]} {[%emt 00:00:12]} 38. Kc2 {[%clk
00:06:10]} {[%emt 00:00:04]} Rdd6 {[%clk 00:00:17]} {[%emt 00:00:13]} 39. Rf8#
{[%emt 00:00:02]} 1-0

[Event "FIDE U16 Olympiad_boards_81-124"]
[Site "Eindhoven, Netherlands"]
[Date "2023.08.14"]
[Round "2.37"]
[White "Altynbekuly, Madiyar"]
[Black "Sacco, Isaac"]
[Result "1-0"]
[TimeControl "45min+10sec"]
[WhiteElo "1750"]
[BlackElo "1272"]

1. e4 {[%clk 00:45:17]} {[%emt 00:00:02]} e5 {[%clk 00:45:19]} {[%emt
00:00:02]} 2. Nf3 {[%clk 00:45:08]} {[%emt 00:00:18]} Nc6 {[%clk 00:45:28]}
{[%emt 00:00:02]} 3. Bb5 {[%clk 00:44:06]} {[%emt 00:01:12]} Nf6 {[%clk
00:45:36]} {[%emt 00:00:02]} 4. O-O {[%clk 00:43:30]} {[%emt 00:00:45]} Bc5
{[%clk 00:44:54]} {[%emt 00:00:49]} 5. Re1 {[%clk 00:37:37]} {[%emt 00:06:06]}
d6 {[%clk 00:44:15]} {[%emt 00:00:50]} 6. h3 {[%clk 00:37:12]} {[%emt
00:00:35]} Bd7 {[%clk 00:42:06]} {[%emt 00:02:16]} 7. c3 {[%clk 00:37:00]}
{[%emt 00:00:24]} a6 {[%clk 00:40:09]} {[%emt 00:02:08]} 8. Ba4 {[%clk
00:36:57]} {[%emt 00:00:13]} O-O {[%clk 00:36:22]} {[%emt 00:03:57]} 9. d4
{[%clk 00:36:45]} {[%emt 00:00:21]} exd4 {[%clk 00:35:38]} {[%emt 00:00:55]} 10.
cxd4 {[%clk 00:36:51]} {[%emt 00:00:04]} Bb6 {[%clk 00:34:04]} {[%emt
00:01:41]} 11. Nc3 {[%clk 00:36:23]} {[%emt 00:00:38]} h6 {[%clk 00:33:05]}
{[%emt 00:01:11]} 12. Bf4 {[%clk 00:33:03]} {[%emt 00:03:28]} Re8 {[%clk
00:31:31]} {[%emt 00:01:44]} 13. Qd2 {[%clk 00:31:08]} {[%emt 00:02:06]} Ba5
{[%clk 00:27:49]} {[%emt 00:03:41]} 14. Bc2 {[%clk 00:31:03]} {[%emt 00:00:26]}
Qe7 {[%clk 00:26:05]} {[%emt 00:01:52]} 15. e5 {[%clk 00:30:17]} {[%emt
00:00:58]} Nh5 {[%clk 00:23:57]} {[%emt 00:02:11]} 16. Bxh6 {[%clk 00:28:54]}
{[%emt 00:01:40]} dxe5 {[%clk 00:19:03]} {[%emt 00:05:04]} 17. dxe5 {[%clk
00:28:30]} {[%emt 00:00:34]} b5 {[%clk 00:16:30]} {[%emt 00:02:42]} 18. Qd3
{[%clk 00:24:47]} {[%emt 00:03:54]} g6 {[%clk 00:13:18]} {[%emt 00:03:23]} 19.
Bb3 {[%clk 00:13:27]} {[%emt 00:11:29]} Be6 {[%clk 00:08:53]} {[%emt 00:04:35]}
20. Nd5 {[%clk 00:12:06]} {[%emt 00:01:32]} Bxd5 {[%clk 00:08:14]} {[%emt
00:00:48]} 21. Bxd5 {[%clk 00:12:11]} {[%emt 00:00:05]} Bxe1 {[%clk 00:06:50]}
{[%emt 00:01:33]} 22. Qxg6+ {[%clk 00:12:18]} {[%emt 00:00:04]} Kh8 {[%clk
00:06:26]} {[%emt 00:00:34]} 23. Qxh5 {[%clk 00:12:25]} {[%emt 00:00:03]} Qd7
{[%clk 00:03:20]} {[%emt 00:03:14]} 24. Bg5+ {[%clk 00:12:21]} {[%emt
00:00:16]} Kg8 {[%clk 00:02:25]} {[%emt 00:01:02]} 25. Qg6+ {[%clk 00:12:30]}
{[%emt 00:00:06]} Kh8 {[%clk 00:01:42]} {[%emt 00:00:51]} 26. Bf6# {[%clk
00:12:37]} {[%emt 00:00:03]} 1-0

[Event "FIDE U16 Olympiad_boards_81-124"]
[Site "Eindhoven, Netherlands"]
[Date "2023.08.14"]
[Round "2.38"]
[White "Ellul, Nicole"]
[Black "Savitskiy, Vladimir"]
[Result "0-1"]
[TimeControl "45min+10sec"]
[WhiteElo "1251"]
[BlackElo "1513"]

1. d4 {[%clk 00:45:19]} {[%emt 00:04:41]} Nf6 {[%clk 00:45:14]} {[%emt
00:00:06]} 2. Nc3 {[%clk 00:45:26]} {[%emt 00:00:02]} d5 {[%clk 00:45:16]}
{[%emt 00:00:09]} 3. Bf4 {[%clk 00:45:33]} {[%emt 00:00:02]} a6 {[%clk
00:45:16]} {[%emt 00:00:10]} 4. e3 {[%clk 00:45:41]} {[%emt 00:00:03]} e6
{[%clk 00:45:23]} {[%emt 00:00:03]} 5. Nf3 {[%clk 00:45:42]} {[%emt 00:00:09]}
c5 {[%clk 00:45:24]} {[%emt 00:00:09]} 6. Bd3 {[%clk 00:45:17]} {[%emt
00:00:34]} Nc6 {[%clk 00:45:28]} {[%emt 00:00:07]} 7. O-O {[%clk 00:44:27]}
{[%emt 00:01:01]} Be7 {[%clk 00:45:29]} {[%emt 00:00:08]} 8. h3 {[%clk
00:43:24]} {[%emt 00:01:13]} O-O {[%clk 00:45:31]} {[%emt 00:00:07]} 9. Ne2
{[%clk 00:42:31]} {[%emt 00:01:04]} c4 {[%clk 00:45:40]} {[%emt 00:00:02]} 10.
Bxh7+ {[%clk 00:41:19]} {[%emt 00:01:22]} Nxh7 {[%clk 00:45:29]} {[%emt
00:00:21]} 11. c3 {[%clk 00:39:55]} {[%emt 00:01:33]} Bd6 {[%clk 00:45:36]}
{[%emt 00:00:03]} 12. Qc2 {[%clk 00:39:12]} {[%emt 00:00:53]} Bxf4 {[%clk
00:45:26]} {[%emt 00:00:21]} 13. Nxf4 {[%clk 00:39:09]} {[%emt 00:00:13]} b5
{[%clk 00:45:35]} {[%emt 00:00:02]} 14. g4 {[%clk 00:37:55]} {[%emt 00:01:23]}
Ng5 {[%clk 00:44:09]} {[%emt 00:01:35]} 15. Nd2 {[%clk 00:34:43]} {[%emt
00:03:22]} e5 {[%clk 00:43:36]} {[%emt 00:00:43]} 16. dxe5 {[%clk 00:33:12]}
{[%emt 00:01:41]} Nxe5 {[%clk 00:43:44]} {[%emt 00:00:02]} 17. f3 {[%clk
00:31:43]} {[%emt 00:01:39]} Ne6 {[%clk 00:41:58]} {[%emt 00:01:55]} 18. Rae1
{[%clk 00:28:13]} {[%emt 00:03:40]} Nxf4 {[%clk 00:41:57]} {[%emt 00:00:11]} 19.
exf4 {[%clk 00:28:15]} {[%emt 00:00:08]} Nd3 {[%clk 00:42:06]} {[%emt
00:00:02]} 20. Re2 {[%clk 00:27:26]} {[%emt 00:00:59]} Qh4 {[%clk 00:41:57]}
{[%emt 00:00:19]} 21. Kg2 {[%clk 00:25:55]} {[%emt 00:01:40]} Nxf4+ {[%clk
00:42:05]} {[%emt 00:00:02]} 22. Kh2 {[%clk 00:25:14]} {[%emt 00:00:51]} Qxh3+
{[%clk 00:42:04]} {[%emt 00:00:11]} 23. Kg1 {[%clk 00:24:47]} {[%emt 00:00:37]}
Qg3+ {[%clk 00:42:12]} {[%emt 00:00:02]} 24. Kh1 {[%clk 00:24:28]} {[%emt
00:00:28]} Nxe2 {[%clk 00:42:20]} {[%emt 00:00:03]} 25. Nb1 {[%clk 00:23:43]}
{[%emt 00:00:54]} Qh3# {[%clk 00:42:27]} {[%emt 00:00:02]} 0-1

[Event "FIDE U16 Olympiad_boards_81-124"]
[Site "Eindhoven, Netherlands"]
[Date "2023.08.14"]
[Round "2.40"]
[White "Gauci, Andre"]
[Black "Kazhiakhmetova, Yerkenaz"]
[Result "0-1"]
[TimeControl "45min+10sec"]
[WhiteElo "1277"]
[BlackElo "1379"]

1. d4 {[%clk 00:45:17]} {[%emt 00:00:02]} Nf6 {[%clk 00:45:10]} {[%emt
00:00:11]} 2. Bf4 {[%clk 00:45:20]} {[%emt 00:00:07]} d5 {[%clk 00:44:36]}
{[%emt 00:00:44]} 3. e3 {[%clk 00:45:12]} {[%emt 00:00:17]} e6 {[%clk
00:44:45]} {[%emt 00:00:02]} 4. c3 {[%clk 00:45:10]} {[%emt 00:00:12]} Bd6
{[%clk 00:44:53]} {[%emt 00:00:01]} 5. Bg3 {[%clk 00:45:13]} {[%emt 00:00:07]}
O-O {[%clk 00:44:56]} {[%emt 00:00:06]} 6. Nd2 {[%clk 00:45:06]} {[%emt
00:00:19]} b6 {[%clk 00:45:04]} {[%emt 00:00:02]} 7. Ngf3 {[%clk 00:44:21]}
{[%emt 00:00:55]} Ba6 {[%clk 00:44:07]} {[%emt 00:01:06]} 8. Bxa6 {[%clk
00:42:18]} {[%emt 00:02:13]} Nxa6 {[%clk 00:44:11]} {[%emt 00:00:06]} 9. O-O
{[%clk 00:41:03]} {[%emt 00:01:25]} Bxg3 {[%clk 00:44:07]} {[%emt 00:00:14]} 10.
hxg3 {[%clk 00:41:12]} {[%emt 00:00:02]} c5 {[%clk 00:43:03]} {[%emt 00:01:14]}
11. Ne5 {[%clk 00:37:39]} {[%emt 00:03:42]} Nb8 {[%clk 00:39:38]} {[%emt
00:03:35]} 12. Ndf3 {[%clk 00:35:00]} {[%emt 00:02:50]} Nfd7 {[%clk 00:39:38]}
{[%emt 00:00:09]} 13. Qc2 {[%clk 00:30:06]} {[%emt 00:05:04]} Nxe5 {[%clk
00:38:59]} {[%emt 00:00:50]} 14. Nxe5 {[%clk 00:29:47]} {[%emt 00:00:28]} Qc7
{[%clk 00:38:11]} {[%emt 00:00:57]} 15. f4 {[%clk 00:27:08]} {[%emt 00:02:50]}
f6 {[%clk 00:37:37]} {[%emt 00:00:44]} 16. Nf3 {[%clk 00:26:34]} {[%emt
00:00:44]} Nd7 {[%clk 00:37:23]} {[%emt 00:00:23]} 17. Rae1 {[%clk 00:23:04]}
{[%emt 00:03:40]} f5 {[%clk 00:34:29]} {[%emt 00:03:05]} 18. Ng5 {[%clk
00:20:03]} {[%emt 00:02:59]} Rae8 {[%clk 00:33:10]} {[%emt 00:01:41]} 19. Kf2
{[%clk 00:17:16]} {[%emt 00:02:57]} Nf6 {[%clk 00:33:07]} {[%emt 00:00:13]} 20.
Kf3 {[%clk 00:14:59]} {[%emt 00:02:27]} h6 {[%clk 00:32:48]} {[%emt 00:00:29]}
21. Nh3 {[%clk 00:14:54]} {[%emt 00:00:15]} Qf7 {[%clk 00:32:30]} {[%emt
00:00:29]} 22. Qe2 {[%clk 00:10:00]} {[%emt 00:05:03]} Qh5+ {[%clk 00:32:23]}
{[%emt 00:00:17]} 23. Kf2 {[%clk 00:10:04]} {[%emt 00:00:07]} Ne4+ {[%clk
00:32:20]} {[%emt 00:00:13]} 24. Kg1 {[%clk 00:10:03]} {[%emt 00:00:11]} Qxe2
{[%clk 00:32:28]} {[%emt 00:00:02]} 25. Rxe2 {[%clk 00:10:05]} {[%emt
00:00:08]} Nxg3 {[%emt 00:00:03]} 26. Ree1 {[%clk 00:09:10]} {[%emt 00:01:03]}
Nxf1 {[%clk 00:32:45]} {[%emt 00:00:02]} 27. Rxf1 {[%clk 00:09:18]} {[%emt
00:00:02]} Rc8 {[%clk 00:32:42]} {[%emt 00:00:12]} 28. Re1 {[%clk 00:08:47]}
{[%emt 00:00:42]} b5 {[%clk 00:32:49]} {[%emt 00:00:03]} 29. a3 {[%clk
00:07:06]} {[%emt 00:01:51]} a5 {[%clk 00:32:58]} {[%emt 00:00:01]} 30. b4
{[%clk 00:06:51]} {[%emt 00:00:25]} cxb4 {[%clk 00:33:01]} {[%emt 00:00:06]} 31.
cxb4 {[%clk 00:06:59]} {[%emt 00:00:02]} axb4 {[%clk 00:33:10]} {[%emt
00:00:02]} 32. axb4 {[%clk 00:07:08]} Rc4 {[%clk 00:33:19]} {[%emt 00:00:01]}
33. Rb1 {[%clk 00:07:09]} {[%emt 00:00:10]} Ra8 {[%clk 00:33:27]} {[%emt
00:00:01]} 34. Nf2 {[%clk 00:06:49]} {[%emt 00:00:31]} Ra3 {[%clk 00:33:24]}
{[%emt 00:00:11]} 35. Nd1 {[%clk 00:06:26]} {[%emt 00:00:35]} Ra4 {[%clk
00:33:09]} {[%emt 00:00:24]} 36. Kf2 {[%clk 00:06:13]} {[%emt 00:00:22]} Raxb4
{[%clk 00:33:08]} {[%emt 00:00:12]} 37. Nc3 {[%clk 00:05:35]} {[%emt 00:00:49]}
Rxb1 {[%clk 00:33:12]} {[%emt 00:00:05]} 38. Nxb1 {[%clk 00:05:44]} {[%emt
00:00:02]} Rc2+ {[%clk 00:33:13]} {[%emt 00:00:05]} 39. Kf3 {[%clk 00:05:31]}
{[%emt 00:00:27]} b4 {[%clk 00:33:19]} {[%emt 00:00:03]} 40. g4 {[%clk
00:05:02]} {[%emt 00:00:40]} Rb2 {[%clk 00:33:27]} {[%emt 00:00:02]} 41. gxf5
{[%clk 00:05:05]} {[%emt 00:00:08]} exf5 {[%clk 00:33:35]} {[%emt 00:00:01]} 42.
e4 {[%clk 00:04:52]} {[%emt 00:00:24]} fxe4+ {[%clk 00:33:44]} {[%emt
00:00:02]} 43. Kg4 {[%clk 00:04:59]} {[%emt 00:00:03]} Rxb1 {[%clk 00:33:49]}
{[%emt 00:00:04]} 44. f5 {[%clk 00:05:07]} {[%emt 00:00:02]} Rg1+ {[%clk
00:33:55]} {[%emt 00:00:03]} 45. Kf4 {[%clk 00:05:16]} {[%emt 00:00:02]} b3
{[%clk 00:34:01]} {[%emt 00:00:04]} 46. Ke5 {[%clk 00:05:24]} {[%emt 00:00:01]}
b2 {[%clk 00:34:04]} {[%emt 00:00:07]} 47. Kxd5 {[%clk 00:05:32]} {[%emt
00:00:03]} b1=Q {[%clk 00:34:10]} {[%emt 00:00:04]} 48. Ke5 {[%clk 00:05:38]}
{[%emt 00:00:04]} Qb5+ {[%clk 00:34:12]} {[%emt 00:00:08]} 49. Kxe4 {[%clk
00:05:45]} {[%emt 00:00:02]} Re1+ {[%clk 00:34:20]} {[%emt 00:00:02]} 50. Kf4
{[%clk 00:05:53]} {[%emt 00:00:03]} Qf1+ {[%clk 00:34:25]} {[%emt 00:00:05]} 51.
Kg4 {[%clk 00:05:50]} {[%emt 00:00:13]} Re2 {[%clk 00:34:25]} {[%emt 00:00:10]}
52. d5 {[%clk 00:05:34]} {[%emt 00:00:27]} Rg2+ {[%clk 00:34:34]} {[%emt
00:00:01]} 53. Kh4 Qh1# {[%emt 00:00:01]} 0-1

[Event "FIDE U16 Olympiad_boards_81-124"]
[Site "Eindhoven, Netherlands"]
[Date "2023.08.14"]
[Round "2.41"]
[White "Dokoria, Daniel"]
[Black "Hashimoto, Shunji"]
[Result "0-1"]
[TimeControl "45min+10sec"]
[WhiteElo "1252"]
[BlackElo "1789"]

1. e4 {[%clk 00:41:44]} d5 {[%clk 00:43:59]} 2. exd5 {[%clk 00:41:44]} Qxd5
{[%clk 00:43:59]} 3. Nc3 {[%clk 00:41:44]} Qa5 {[%clk 00:43:59]} 4. d4 {[%clk
00:41:44]} c6 {[%clk 00:43:59]} 5. Bd2 {[%clk 00:41:44]} Bf5 6. Nf3 {[%emt
00:00:03]} Nf6 7. Ne4 {[%clk 00:41:44]} {[%emt 00:01:02]} Qc7 {[%clk 00:43:59]}
{[%emt 00:00:48]} 8. Nxf6+ {[%clk 00:40:39]} {[%emt 00:01:15]} exf6 {[%clk
00:43:20]} {[%emt 00:00:49]} 9. Bc4 {[%clk 00:39:09]} {[%emt 00:01:40]} Bd6
{[%clk 00:40:13]} {[%emt 00:03:18]} 10. Qe2+ {[%clk 00:38:43]} {[%emt
00:00:35]} Qe7 {[%clk 00:40:07]} {[%emt 00:00:17]} 11. Qxe7+ {[%clk 00:37:59]}
{[%emt 00:00:52]} Bxe7 {[%clk 00:40:11]} {[%emt 00:00:07]} 12. O-O-O {[%clk
00:38:04]} {[%emt 00:00:04]} O-O {[%clk 00:39:17]} {[%emt 00:01:05]} 13. Rhe1
{[%clk 00:36:09]} {[%emt 00:02:06]} Bd6 {[%clk 00:38:55]} {[%emt 00:00:32]} 14.
Nh4 {[%clk 00:33:53]} {[%emt 00:02:26]} Bg4 {[%clk 00:36:46]} {[%emt 00:02:18]}
15. f3 {[%clk 00:33:03]} {[%emt 00:01:00]} Bd7 {[%clk 00:35:08]} {[%emt
00:01:49]} 16. g3 {[%clk 00:31:21]} {[%emt 00:01:50]} b5 {[%clk 00:27:31]}
{[%emt 00:07:48]} 17. Bb3 {[%clk 00:28:37]} {[%emt 00:02:54]} c5 {[%clk
00:25:45]} {[%emt 00:01:58]} 18. dxc5 {[%clk 00:26:06]} {[%emt 00:02:40]} Bxc5
{[%clk 00:25:48]} {[%emt 00:00:06]} 19. Bd5 {[%clk 00:22:56]} {[%emt 00:03:19]}
Bc6 {[%clk 00:25:21]} {[%emt 00:00:39]} 20. Be3 {[%clk 00:21:45]} {[%emt
00:01:20]} Bxe3+ {[%clk 00:19:59]} {[%emt 00:05:33]} 21. Rxe3 {[%clk 00:21:43]}
{[%emt 00:00:12]} Bxd5 {[%clk 00:15:51]} {[%emt 00:04:18]} 22. Rxd5 {[%clk
00:21:45]} {[%emt 00:00:07]} b4 {[%clk 00:15:28]} {[%emt 00:00:33]} 23. Rd6
{[%clk 00:21:02]} {[%emt 00:00:51]} a5 {[%clk 00:14:53]} {[%emt 00:00:48]} 24.
Nf5 {[%clk 00:19:41]} {[%emt 00:01:30]} g6 {[%clk 00:11:58]} {[%emt 00:03:06]}
25. Ne7+ {[%clk 00:18:19]} {[%emt 00:01:32]} Kg7 {[%clk 00:12:03]} {[%emt
00:00:06]} 26. Nc6 {[%clk 00:18:19]} {[%emt 00:00:08]} Ra6 {[%clk 00:11:22]}
{[%emt 00:00:52]} 27. Rdd3 {[%clk 00:10:31]} {[%emt 00:07:58]} Rxc6 {[%clk
00:10:06]} {[%emt 00:01:27]} 28. Rb3 {[%clk 00:09:01]} {[%emt 00:01:38]} Rfc8
{[%clk 00:09:21]} {[%emt 00:00:56]} 29. c3 {[%clk 00:08:43]} {[%emt 00:00:28]}
Na6 {[%clk 00:08:56]} {[%emt 00:00:35]} 30. a3 {[%clk 00:07:41]} {[%emt
00:01:13]} Nc5 {[%clk 00:08:30]} {[%emt 00:00:36]} 31. axb4 {[%clk 00:07:46]}
{[%emt 00:00:04]} Nxb3+ {[%clk 00:08:34]} {[%emt 00:00:06]} 32. Kc2 {[%clk
00:07:51]} {[%emt 00:00:04]} Na1+ {[%clk 00:07:57]} {[%emt 00:00:48]} 33. Kb1
{[%clk 00:07:54]} {[%emt 00:00:08]} axb4 {[%clk 00:07:56]} {[%emt 00:00:12]} 34.
Kxa1 {[%clk 00:07:58]} {[%emt 00:00:06]} bxc3 {[%clk 00:08:01]} {[%emt
00:00:05]} 35. Kb1 {[%clk 00:05:58]} {[%emt 00:02:09]} cxb2 {[%clk 00:07:37]}
{[%emt 00:00:34]} 36. Kxb2 {[%clk 00:06:01]} {[%emt 00:00:06]} Rb6+ {[%clk
00:07:36]} {[%emt 00:00:11]} 37. Ka2 {[%clk 00:06:03]} {[%emt 00:00:07]} Ra8+
{[%clk 00:07:37]} {[%emt 00:00:10]} 38. Ra3 {[%clk 00:06:09]} {[%emt 00:00:03]}
Rxa3+ {[%clk 00:07:44]} {[%emt 00:00:05]} 39. Kxa3 {[%clk 00:06:17]} {[%emt
00:00:01]} Kf8 {[%clk 00:07:51]} {[%emt 00:00:03]} 40. Ka4 {[%clk 00:06:22]}
{[%emt 00:00:04]} Ke7 {[%clk 00:07:59]} {[%emt 00:00:03]} 41. Ka5 {[%clk
00:06:28]} {[%emt 00:00:04]} Rb8 {[%clk 00:07:41]} {[%emt 00:00:29]} 0-1